[Event "*** Titled Tuesday 3|2 Blitz"]
[Site "Chess.com"]
[Date "2016.01.05"]
[Round "2"]
[White "GrigorGrigorov"]
[Black "JusticeBot"]
[Result "0-1"]
[WhiteElo "2497"]
[BlackElo "2485"]
[TimeControl "180+2"]
[EndTime "17:25:15 PST"]
[Termination "JusticeBot won by checkmate"]

1. d4 {[%clk 0:03:01.9]} 1... Nf6 {[%clk 0:02:58.8]} 2. Nf3 {[%clk 0:03:01.8]}
2... e6 {[%clk 0:02:59.8]} 3. c4 {[%clk 0:03:00.7]} 3... b6 {[%clk 0:03:00.7]}
4. g3 {[%clk 0:03:01.1]} 4... Ba6 {[%clk 0:03:01.3]} 5. b3 {[%clk 0:03:00.8]}
5... d5 {[%clk 0:03:01.2]} 6. Bg2 {[%clk 0:02:58.3]} 6... dxc4 {[%clk
0:03:02.6]} 7. Ne5 {[%clk 0:02:58.1]} 7... Bb4+ {[%clk 0:02:59.4]} 8. Bd2 {[%clk
0:02:51.5]} 8... cxb3 {[%clk 0:03:00.2]} 9. axb3 {[%clk 0:02:18.7]} 9... Bxd2+
{[%clk 0:02:59.3]} 10. Qxd2 {[%clk 0:02:18.6]} 10... Nd5 {[%clk 0:03:01.2]} 11.
O-O {[%clk 0:02:18]} 11... O-O {[%clk 0:02:58]} 12. Rc1 {[%clk 0:02:18.3]} 12...
Bb7 {[%clk 0:02:44]} 13. Qc2 {[%clk 0:02:04.4]} 13... c6 {[%clk 0:01:56.9]} 14.
e3 {[%clk 0:01:59.9]} 14... a5 {[%clk 0:01:56.7]} 15. Nd2 {[%clk 0:01:59.1]}
15... f6 {[%clk 0:01:36]} 16. Nd3 {[%clk 0:01:57.6]} 16... Na6 {[%clk
0:01:37.1]} 17. Nc4 {[%clk 0:01:40.1]} 17... Nab4 {[%clk 0:01:28.7]} 18. Nxb4
{[%clk 0:01:41.1]} 18... Nxb4 {[%clk 0:01:29.8]} 19. Qe4 {[%clk 0:01:31.5]}
19... Re8 {[%clk 0:01:30.8]} 20. h4 {[%clk 0:01:30.3]} 20... b5 {[%clk
0:01:24.6]} 21. Nb2 {[%clk 0:01:27.1]} 21... Qd5 {[%clk 0:01:08.7]} 22. Rc3
{[%clk 0:01:05.7]} 22... Qxe4 {[%clk 0:01:07.7]} 23. Bxe4 {[%clk 0:01:06.8]}
23... e5 {[%clk 0:01:04.6]} 24. dxe5 {[%clk 0:01:06]} 24... Rxe5 {[%clk
0:01:06.5]} 25. Bf3 {[%clk 0:01:05.8]} 25... Re7 {[%clk 0:00:58.7]} 26. Kg2
{[%clk 0:00:57.6]} 26... Kf7 {[%clk 0:00:58.8]} 27. h5 {[%clk 0:00:57.7]} 27...
Rd7 {[%clk 0:00:59.7]} 28. Be4 {[%clk 0:00:41.5]} 28... Rd2 {[%clk 0:00:59.7]}
29. Nd3 {[%clk 0:00:34.9]} 29... Nxd3 {[%clk 0:00:48.7]} 30. Rxd3 {[%clk
0:00:35]} 30... Rxd3 {[%clk 0:00:46.1]} 31. Bxd3 {[%clk 0:00:36.1]} 31... g6
{[%clk 0:00:39.8]} 32. hxg6+ {[%clk 0:00:33.7]} 32... hxg6 {[%clk 0:00:41.7]}
33. Be4 {[%clk 0:00:34.9]} 33... a4 {[%clk 0:00:41.4]} 34. b4 {[%clk 0:00:29.1]}
34... a3 {[%clk 0:00:40.8]} 35. Kf1 {[%clk 0:00:25.7]} 35... Ra4 {[%clk
0:00:42.1]} 36. Bc2 {[%clk 0:00:26.2]} 36... Rxb4 {[%clk 0:00:41.8]} 37. Rxa3
{[%clk 0:00:27.7]} 37... Bc8 {[%clk 0:00:23]} 38. Ra7+ {[%clk 0:00:25.9]} 38...
Ke6 {[%clk 0:00:24]} 39. Bxg6 {[%clk 0:00:26.7]} 39... Kd6 {[%clk 0:00:24.8]}
40. Rf7 {[%clk 0:00:26.3]} 40... Bh3+ {[%clk 0:00:26]} 41. Ke2 {[%clk
0:00:26.6]} 41... Ke6 {[%clk 0:00:26.7]} 42. Rc7 {[%clk 0:00:26.2]} 42... Bg2
{[%clk 0:00:22.2]} 43. Rc8 {[%clk 0:00:18]} 43... Rb2+ {[%clk 0:00:23.1]} 44.
Ke1 {[%clk 0:00:18.6]} 44... Bf3 {[%clk 0:00:22.2]} 45. g4 {[%clk 0:00:16.2]}
45... b4 {[%clk 0:00:17.7]} 46. Bf5+ {[%clk 0:00:16.6]} 46... Kd6 {[%clk
0:00:19.1]} 47. Rd8+ {[%clk 0:00:16.8]} 47... Ke5 {[%clk 0:00:18]} 48. Re8+
{[%clk 0:00:17.1]} 48... Kd5 {[%clk 0:00:18.2]} 49. e4+ {[%clk 0:00:17.5]} 49...
Kd4 {[%clk 0:00:16.4]} 50. Rd8+ {[%clk 0:00:17.8]} 50... Kc5 {[%clk 0:00:17.5]}
51. e5 {[%clk 0:00:18.6]} 51... Re2+ {[%clk 0:00:17.7]} 52. Kf1 {[%clk
0:00:19.1]} 52... Rxe5 {[%clk 0:00:19.6]} 53. Rd2 {[%clk 0:00:16.5]} 53... Rd5
{[%clk 0:00:20.4]} 54. Rc2+ {[%clk 0:00:16.9]} 54... Kb6 {[%clk 0:00:19.8]} 55.
Rc4 {[%clk 0:00:17.4]} 55... Rd1# {[%clk 0:00:20.1]} 0-1

[Event "*** Titled Tuesday 3|2 Blitz"]
[Site "Chess.com"]
[Date "2016.01.05"]
[Round "2"]
[White "Carolina-moon"]
[Black "RobertoSuardi"]
[Result "0-1"]
[WhiteElo "1999"]
[BlackElo "1877"]
[TimeControl "180+2"]
[EndTime "17:25:18 PST"]
[Termination "RobertoSuardi won by resignation"]

1. e4 {[%clk 0:03:01.9]} 1... Nf6 {[%clk 0:03:00.1]} 2. e5 {[%clk 0:03:02.6]}
2... Nd5 {[%clk 0:03:01]} 3. d4 {[%clk 0:03:04.5]} 3... d6 {[%clk 0:03:01.6]} 4.
c4 {[%clk 0:03:05.9]} 4... Nb6 {[%clk 0:03:02.6]} 5. exd6 {[%clk 0:03:07.8]}
5... exd6 {[%clk 0:03:03.4]} 6. Nc3 {[%clk 0:03:09.7]} 6... Be7 {[%clk
0:03:04.3]} 7. Bd3 {[%clk 0:03:10.4]} 7... O-O {[%clk 0:03:04.2]} 8. Nge2 {[%clk
0:03:11.9]} 8... Bg4 {[%clk 0:03:04.2]} 9. O-O {[%clk 0:03:10.4]} 9... Nc6
{[%clk 0:03:04.4]} 10. Be3 {[%clk 0:03:03.4]} 10... Bf6 {[%clk 0:03:03.6]} 11.
f3 {[%clk 0:03:00.2]} 11... Bh5 {[%clk 0:03:03.5]} 12. Nf4 {[%clk 0:02:45.6]}
12... Bg6 {[%clk 0:03:03.5]} 13. Nxg6 {[%clk 0:02:46]} 13... hxg6 {[%clk
0:03:04.2]} 14. Be2 {[%clk 0:02:02.4]} 14... Re8 {[%clk 0:03:01.3]} 15. Bf2
{[%clk 0:01:55.8]} 15... Qd7 {[%clk 0:02:39.2]} 16. b3 {[%clk 0:01:52.1]} 16...
Re7 {[%clk 0:02:31.9]} 17. a4 {[%clk 0:01:49]} 17... a5 {[%clk 0:02:26.9]} 18.
Qd2 {[%clk 0:01:48.7]} 18... Rae8 {[%clk 0:02:26.2]} 19. Rfe1 {[%clk 0:01:47.9]}
19... Nb4 {[%clk 0:02:20.1]} 20. Rad1 {[%clk 0:01:44.5]} 20... Qd8 {[%clk
0:01:56.2]} 21. Bf1 {[%clk 0:01:40.7]} 21... Nd7 {[%clk 0:01:44.5]} 22. Rxe7
{[%clk 0:01:34.3]} 22... Rxe7 {[%clk 0:01:43.9]} 23. Nd5 {[%clk 0:01:18.7]}
23... Nxd5 {[%clk 0:01:40.5]} 24. cxd5 {[%clk 0:01:20.6]} 24... b6 {[%clk
0:01:36.3]} 25. Bb5 {[%clk 0:01:13.9]} 25... Nf8 {[%clk 0:01:31.2]} 26. Re1
{[%clk 0:01:05.9]} 26... Rxe1+ {[%clk 0:01:29.3]} 27. Qxe1 {[%clk 0:01:06.8]}
27... Qe7 {[%clk 0:01:30.5]} 28. Qd2 {[%clk 0:00:59.3]} 28... Bg5 {[%clk
0:01:24.7]} 29. Qd3 {[%clk 0:00:56.9]} 29... Nh7 {[%clk 0:01:21.3]} 30. g3
{[%clk 0:00:57.3]} 30... Bf6 {[%clk 0:01:18.6]} 31. Kg2 {[%clk 0:00:57.8]} 31...
Nf8 {[%clk 0:01:05.4]} 32. Be3 {[%clk 0:00:56.2]} 32... Bg5 {[%clk 0:01:04]} 33.
Kf2 {[%clk 0:00:41.3]} 33... Bxe3+ {[%clk 0:00:59.6]} 34. Qxe3 {[%clk
0:00:41.9]} 34... Qxe3+ {[%clk 0:01:00.8]} 35. Kxe3 {[%clk 0:00:43.3]} 35... Nh7
{[%clk 0:01:01.9]} 36. h4 {[%clk 0:00:43.3]} 36... Kf8 {[%clk 0:01:02.7]} 37. g4
{[%clk 0:00:41.1]} 37... Nf6 {[%clk 0:01:03.4]} 38. Bc6 {[%clk 0:00:40.9]} 38...
Ke7 {[%clk 0:01:04.2]} 39. Kf4 {[%clk 0:00:39.9]} 39... Kd8 {[%clk 0:01:01.5]}
40. Kg5 {[%clk 0:00:37.9]} 40... Ke7 {[%clk 0:00:59.3]} 41. Bb7 {[%clk
0:00:34.7]} 41... Nh7+ {[%clk 0:00:59.2]} 42. Kf4 {[%clk 0:00:34.4]} 42... f6
{[%clk 0:01:00.4]} 43. Bc8 {[%clk 0:00:32.5]} 43... g5+ {[%clk 0:01:00.6]} 44.
hxg5 {[%clk 0:00:31.9]} 44... Nxg5 {[%clk 0:01:01.4]} 45. Ke3 {[%clk 0:00:30.2]}
45... Nh3 {[%clk 0:01:01.4]} 46. f4 {[%clk 0:00:30]} 46... g5 {[%clk 0:01:01.5]}
47. fxg5 {[%clk 0:00:28.3]} 47... fxg5 {[%clk 0:01:02.4]} 48. Bf5 {[%clk
0:00:21.7]} 48... Nf4 {[%clk 0:01:02.8]} 49. Be4 {[%clk 0:00:19.7]} 49... Kf6
{[%clk 0:01:01.3]} 50. Kd2 {[%clk 0:00:19.6]} 50... Nh3 {[%clk 0:01:00.8]} 51.
Kc3 {[%clk 0:00:18.3]} 51... Nf2 {[%clk 0:01:00.4]} 52. Bf3 {[%clk 0:00:19.2]}
52... Nh3 {[%clk 0:00:56.9]} 53. b4 {[%clk 0:00:19.6]} 53... axb4+ {[%clk
0:00:56.2]} 54. Kxb4 {[%clk 0:00:20.7]} 54... Nf4 {[%clk 0:00:56.3]} 55. Kb5
{[%clk 0:00:19.2]} 55... Ke7 {[%clk 0:00:56.9]} 56. Kc6 {[%clk 0:00:19.5]} 56...
Kd8 {[%clk 0:00:57.9]} 57. Be4 {[%clk 0:00:19.8]} 57... Ne2 {[%clk 0:00:58.3]}
58. Kb5 {[%clk 0:00:07.8]} 58... Nc3+ {[%clk 0:00:57.7]} 0-1

[Event "*** Titled Tuesday 3|2 Blitz"]
[Site "Chess.com"]
[Date "2016.01.05"]
[Round "2"]
[White "Iball95"]
[Black "Zlatan56"]
[Result "1-0"]
[WhiteElo "2406"]
[BlackElo "2562"]
[TimeControl "180+2"]
[EndTime "17:25:26 PST"]
[Termination "Iball95 won by resignation"]

1. Nf3 {[%clk 0:03:01.4]} 1... g6 {[%clk 0:03:01.8]} 2. g3 {[%clk 0:02:58.1]}
2... Bg7 {[%clk 0:02:57.4]} 3. Bg2 {[%clk 0:02:58.4]} 3... c5 {[%clk 0:02:57.8]}
4. O-O {[%clk 0:02:58.3]} 4... Nc6 {[%clk 0:02:59.2]} 5. c4 {[%clk 0:02:58.7]}
5... e6 {[%clk 0:02:56.9]} 6. Nc3 {[%clk 0:02:55.1]} 6... Nge7 {[%clk
0:02:58.3]} 7. a3 {[%clk 0:02:55.7]} 7... O-O {[%clk 0:02:57.5]} 8. Rb1 {[%clk
0:02:56.2]} 8... d5 {[%clk 0:02:58]} 9. d3 {[%clk 0:02:53.7]} 9... b6 {[%clk
0:02:55.6]} 10. Bd2 {[%clk 0:02:50.2]} 10... Bb7 {[%clk 0:02:54.4]} 11. b4
{[%clk 0:02:47.5]} 11... cxb4 {[%clk 0:02:54.2]} 12. axb4 {[%clk 0:02:47.6]}
12... dxc4 {[%clk 0:02:55.2]} 13. dxc4 {[%clk 0:02:49.5]} 13... Rc8 {[%clk
0:02:56.7]} 14. Qb3 {[%clk 0:02:46]} 14... Nf5 {[%clk 0:02:56.1]} 15. e3 {[%clk
0:02:37.9]} 15... Nxb4 {[%clk 0:02:47.5]} 16. Rfd1 {[%clk 0:02:19.9]} 16... Nc6
{[%clk 0:02:40.4]} 17. Nb5 {[%clk 0:02:12.6]} 17... Qe7 {[%clk 0:02:40.1]} 18.
g4 {[%clk 0:01:55.7]} 18... Nh4 {[%clk 0:02:29]} 19. Nxh4 {[%clk 0:01:55.8]}
19... Qxh4 {[%clk 0:02:30.9]} 20. Nd6 {[%clk 0:01:56.6]} 20... Ba8 {[%clk
0:01:47.5]} 21. Nxc8 {[%clk 0:01:56.7]} 21... Rxc8 {[%clk 0:01:48.9]} 22. f3
{[%clk 0:01:21.7]} 22... Ne5 {[%clk 0:01:34]} 23. Be1 {[%clk 0:01:21.7]} 23...
Qe7 {[%clk 0:01:27.6]} 24. e4 {[%clk 0:01:13.3]} 24... h5 {[%clk 0:01:22.9]} 25.
gxh5 {[%clk 0:01:05.6]} 25... gxh5 {[%clk 0:01:24.8]} 26. Rbc1 {[%clk
0:00:47.4]} 26... Ng6 {[%clk 0:01:24.7]} 27. Qe3 {[%clk 0:00:38.4]} 27... Kh7
{[%clk 0:01:24.5]} 28. Bd2 {[%clk 0:00:35.9]} 28... Rd8 {[%clk 0:01:07.5]} 29.
Qg5 {[%clk 0:00:35.4]} 29... Qxg5 {[%clk 0:00:41.1]} 30. Bxg5 {[%clk 0:00:37.3]}
30... Rd4 {[%clk 0:00:42.7]} 31. Be3 {[%clk 0:00:29.5]} 31... Rxd1+ {[%clk
0:00:43.3]} 32. Rxd1 {[%clk 0:00:31.4]} 32... Ne5 {[%clk 0:00:44.7]} 33. c5
{[%clk 0:00:27.1]} 33... b5 {[%clk 0:00:42.2]} 34. Rd8 {[%clk 0:00:23]} 34...
Bc6 {[%clk 0:00:41.9]} 35. Kf2 {[%clk 0:00:17]} 35... a5 {[%clk 0:00:40.5]} 36.
f4 {[%clk 0:00:08.3]} 36... Ng4+ {[%clk 0:00:33.1]} 37. Ke2 {[%clk 0:00:08.9]}
37... b4 {[%clk 0:00:26]} 38. Rb8 {[%clk 0:00:08.8]} 38... Nxe3 {[%clk
0:00:19.5]} 39. Kxe3 {[%clk 0:00:09.1]} 39... a4 {[%clk 0:00:20.3]} 40. Rb6
{[%clk 0:00:08.3]} 40... a3 {[%clk 0:00:19.8]} 41. Rxc6 {[%clk 0:00:06.1]} 41...
a2 {[%clk 0:00:20.6]} 42. Ra6 {[%clk 0:00:06.3]} 42... b3 {[%clk 0:00:21.7]} 43.
e5 {[%clk 0:00:04.2]} 43... b2 {[%clk 0:00:21.9]} 44. Be4+ {[%clk 0:00:06.1]}
1-0

[Event "*** Titled Tuesday 3|2 Blitz"]
[Site "Chess.com"]
[Date "2016.01.05"]
[Round "2"]
[White "tac49"]
[Black "alex_zapata"]
[Result "1-0"]
[WhiteElo "2428"]
[BlackElo "2187"]
[TimeControl "180+2"]
[EndTime "17:25:39 PST"]
[Termination "tac49 won by checkmate"]

1. e4 {[%clk 0:02:45.6]} 1... c5 {[%clk 0:02:59.7]} 2. Nc3 {[%clk 0:02:44.6]}
2... e6 {[%clk 0:02:59.9]} 3. Nf3 {[%clk 0:02:44.8]} 3... Nc6 {[%clk 0:02:59.5]}
4. g3 {[%clk 0:02:44.6]} 4... Nf6 {[%clk 0:02:59.2]} 5. Bg2 {[%clk 0:02:42.9]}
5... d5 {[%clk 0:03:00.3]} 6. exd5 {[%clk 0:02:42.7]} 6... Nxd5 {[%clk
0:03:02.2]} 7. Nxd5 {[%clk 0:02:39.3]} 7... Qxd5 {[%clk 0:03:01.9]} 8. O-O
{[%clk 0:02:39.6]} 8... Be7 {[%clk 0:03:02.1]} 9. Re1 {[%clk 0:02:28.4]} 9...
Qd8 {[%clk 0:02:46.6]} 10. d3 {[%clk 0:02:19.9]} 10... O-O {[%clk 0:02:46.7]}
11. Be3 {[%clk 0:02:20.1]} 11... Qc7 {[%clk 0:02:43.8]} 12. Nd2 {[%clk 0:02:05]}
12... b6 {[%clk 0:02:38.4]} 13. a4 {[%clk 0:02:01.7]} 13... Bb7 {[%clk
0:02:38.6]} 14. Nc4 {[%clk 0:02:02.8]} 14... e5 {[%clk 0:02:14.3]} 15. a5 {[%clk
0:02:01.3]} 15... Nxa5 {[%clk 0:02:02.8]} 16. Nxa5 {[%clk 0:02:01.8]} 16... Bxg2
{[%clk 0:02:02.8]} 17. Kxg2 {[%clk 0:02:03.7]} 17... bxa5 {[%clk 0:02:03.6]} 18.
b3 {[%clk 0:02:02.1]} 18... f5 {[%clk 0:02:01.5]} 19. Qe2 {[%clk 0:01:45.1]}
19... f4 {[%clk 0:01:54.2]} 20. Bxf4 {[%clk 0:01:44.6]} 20... exf4 {[%clk
0:01:56.1]} 21. Qxe7 {[%clk 0:01:43.6]} 21... Qc6+ {[%clk 0:01:51.5]} 22. Qe4
{[%clk 0:01:40.9]} 22... Qc7 {[%clk 0:01:12.6]} 23. f3 {[%clk 0:01:21.7]} 23...
Kh8 {[%clk 0:01:09.1]} 24. Qe5 {[%clk 0:01:10.1]} 24... Qb6 {[%clk 0:00:56.7]}
25. gxf4 {[%clk 0:01:06.5]} 25... h6 {[%clk 0:00:35.1]} 26. Re4 {[%clk 0:00:48]}
26... Kh7 {[%clk 0:00:27.5]} 27. Kh1 {[%clk 0:00:41.2]} 27... Rf6 {[%clk
0:00:28.2]} 28. Rg1 {[%clk 0:00:40.2]} 28... Raf8 {[%clk 0:00:29]} 29. f5 {[%clk
0:00:31.9]} 29... Qc6 {[%clk 0:00:26.2]} 30. Qg3 {[%clk 0:00:20.7]} 30... R8f7
{[%clk 0:00:26.3]} 31. Qg6+ {[%clk 0:00:20.4]} 31... Rxg6 {[%clk 0:00:25.5]} 32.
fxg6+ {[%clk 0:00:21]} 32... Kg8 {[%clk 0:00:23.4]} 33. gxf7+ {[%clk 0:00:21.5]}
33... Kxf7 {[%clk 0:00:25.3]} 34. Rge1 {[%clk 0:00:22]} 34... Qf6 {[%clk
0:00:22.2]} 35. Kg2 {[%clk 0:00:22.7]} 35... Qg5+ {[%clk 0:00:22.5]} 36. Kf2
{[%clk 0:00:23.3]} 36... Qd2+ {[%clk 0:00:19.4]} 37. R1e2 {[%clk 0:00:24]} 37...
Qd1 {[%clk 0:00:20.8]} 38. Re7+ {[%clk 0:00:22.6]} 38... Kg8 {[%clk 0:00:21.8]}
39. Rxa7 {[%clk 0:00:19.9]} 39... Qh1 {[%clk 0:00:22.2]} 40. Ke3 {[%clk
0:00:19.4]} 40... Qg1+ {[%clk 0:00:22.2]} 41. Kd2 {[%clk 0:00:18.6]} 41... c4
{[%clk 0:00:23]} 42. Ra8+ {[%clk 0:00:18.6]} 42... Kh7 {[%clk 0:00:24.3]} 43.
bxc4 {[%clk 0:00:19.8]} 43... Qc5 {[%clk 0:00:24.3]} 44. Rb8 {[%clk 0:00:09]}
44... a4 {[%clk 0:00:21.4]} 45. Rb5 {[%clk 0:00:10]} 45... Qa3 {[%clk
0:00:19.1]} 46. Rb7 {[%clk 0:00:07.9]} 46... Qa2 {[%clk 0:00:19]} 47. Ree7
{[%clk 0:00:08.4]} 47... a3 {[%clk 0:00:19.6]} 48. Rxg7+ {[%clk 0:00:09.8]}
48... Kh8 {[%clk 0:00:21.2]} 49. Rh7+ {[%clk 0:00:10.9]} 49... Kg8 {[%clk
0:00:21.6]} 50. Rbc7 {[%clk 0:00:12.8]} 50... Qa1 {[%clk 0:00:18.5]} 51. Rcg7+
{[%clk 0:00:14.7]} 51... Kf8 {[%clk 0:00:19.1]} 52. Ra7 {[%clk 0:00:15.4]} 52...
a2 {[%clk 0:00:18.2]} 53. Ra8# {[%clk 0:00:13.5]} 1-0

[Event "*** Titled Tuesday 3|2 Blitz"]
[Site "Chess.com"]
[Date "2016.01.05"]
[Round "2"]
[White "Gabrielian_Artur"]
[Black "chessdude"]
[Result "0-1"]
[WhiteElo "2472"]
[BlackElo "2340"]
[TimeControl "180+2"]
[EndTime "17:27:48 PST"]
[Termination "chessdude won on time"]

1. e4 {[%clk 0:02:55.5]} 1... c5 {[%clk 0:03:00.2]} 2. Nf3 {[%clk 0:02:56.6]}
2... d6 {[%clk 0:03:01.4]} 3. d4 {[%clk 0:02:57.4]} 3... cxd4 {[%clk 0:03:03]}
4. Nxd4 {[%clk 0:02:58.7]} 4... Nf6 {[%clk 0:03:04.7]} 5. Nc3 {[%clk 0:02:59.4]}
5... g6 {[%clk 0:03:06.1]} 6. Be2 {[%clk 0:02:57.1]} 6... Bg7 {[%clk 0:03:06.2]}
7. O-O {[%clk 0:02:58.2]} 7... O-O {[%clk 0:03:07.7]} 8. Re1 {[%clk 0:02:59.1]}
8... Nc6 {[%clk 0:03:08.8]} 9. Nb3 {[%clk 0:03:00.2]} 9... Be6 {[%clk
0:03:06.6]} 10. Bf1 {[%clk 0:03:00.4]} 10... a6 {[%clk 0:03:03.5]} 11. Bg5
{[%clk 0:03:00.4]} 11... b5 {[%clk 0:02:49.5]} 12. a4 {[%clk 0:02:58.8]} 12...
b4 {[%clk 0:02:49.5]} 13. Nd5 {[%clk 0:03:00]} 13... Nd7 {[%clk 0:02:47.1]} 14.
Rb1 {[%clk 0:02:47.8]} 14... h6 {[%clk 0:02:35.4]} 15. Bh4 {[%clk 0:02:48.4]}
15... g5 {[%clk 0:02:35.9]} 16. Bg3 {[%clk 0:02:49.3]} 16... a5 {[%clk
0:02:24.9]} 17. Bb5 {[%clk 0:02:49.4]} 17... Nce5 {[%clk 0:02:23.4]} 18. Nd4
{[%clk 0:02:48.2]} 18... Rc8 {[%clk 0:02:17.6]} 19. Rc1 {[%clk 0:02:46.8]} 19...
Nc5 {[%clk 0:02:06.5]} 20. Bxe5 {[%clk 0:02:06.9]} 20... Bxe5 {[%clk 0:01:57.2]}
21. Nc6 {[%clk 0:02:05]} 21... Rxc6 {[%clk 0:01:58]} 22. Bxc6 {[%clk 0:02:05.7]}
22... Bxb2 {[%clk 0:01:58.4]} 23. Rb1 {[%clk 0:02:05.3]} 23... Bg7 {[%clk
0:01:58.8]} 24. Bb5 {[%clk 0:02:06.1]} 24... Bxd5 {[%clk 0:01:33.6]} 25. exd5
{[%clk 0:02:06.5]} 25... Bf6 {[%clk 0:01:35.2]} 26. Qh5 {[%clk 0:02:03.8]} 26...
Kg7 {[%clk 0:01:35.4]} 27. Rbd1 {[%clk 0:02:05]} 27... Nd7 {[%clk 0:01:29.8]}
28. Re3 {[%clk 0:01:18]} 28... Ne5 {[%clk 0:01:29.6]} 29. Rg3 {[%clk 0:01:18.6]}
29... Ng6 {[%clk 0:01:28.7]} 30. Bd3 {[%clk 0:01:14.4]} 30... Qc7 {[%clk
0:01:15.4]} 31. h4 {[%clk 0:01:03.2]} 31... Qc5 {[%clk 0:01:03.7]} 32. hxg5
{[%clk 0:00:59.6]} 32... hxg5 {[%clk 0:01:04.2]} 33. Re1 {[%clk 0:00:28.5]}
33... Rh8 {[%clk 0:01:01.3]} 34. Qe2 {[%clk 0:00:24.5]} 34... Qxd5 {[%clk
0:00:46.9]} 35. Bxg6 {[%clk 0:00:24.4]} 35... Kxg6 {[%clk 0:00:42.7]} 36. Rd3
{[%clk 0:00:24.5]} 36... Qf5 {[%clk 0:00:36.4]} 37. g4 {[%clk 0:00:19.9]} 37...
Qf4 {[%clk 0:00:35.8]} 38. Qe4+ {[%clk 0:00:20.8]} 38... Qxe4 {[%clk 0:00:37.1]}
39. Rxe4 {[%clk 0:00:22]} 39... Rc8 {[%clk 0:00:38.7]} 40. Re2 {[%clk
0:00:23.1]} 40... Rc5 {[%clk 0:00:40]} 41. Kg2 {[%clk 0:00:24.1]} 41... Be5
{[%clk 0:00:41.1]} 42. Red2 {[%clk 0:00:22]} 42... e6 {[%clk 0:00:41.2]} 43. Kf1
{[%clk 0:00:21.1]} 43... d5 {[%clk 0:00:42.4]} 44. Ke2 {[%clk 0:00:21.6]} 44...
Bf4 {[%clk 0:00:43.6]} 45. Rd1 {[%clk 0:00:16.6]} 45... Rxc2+ {[%clk 0:00:43.4]}
46. Kf1 {[%clk 0:00:18.3]} 46... Ra2 {[%clk 0:00:38.9]} 47. Kg2 {[%clk
0:00:10.8]} 47... Rxa4 {[%clk 0:00:39.1]} 48. Rh1 {[%clk 0:00:12.4]} 48... Ra2
{[%clk 0:00:39]} 49. Rdh3 {[%clk 0:00:13.5]} 49... Kf6 {[%clk 0:00:40.1]} 50.
Rh6+ {[%clk 0:00:13]} 50... Ke7 {[%clk 0:00:40.9]} 51. Rh8 {[%clk 0:00:14]}
51... Be3 {[%clk 0:00:41.4]} 52. Rb8 {[%clk 0:00:14.8]} 52... Rxf2+ {[%clk
0:00:41.4]} 53. Kh3 {[%clk 0:00:15.3]} 53... Rf3+ {[%clk 0:00:39.8]} 54. Kg2
{[%clk 0:00:16.5]} 54... Rg3+ {[%clk 0:00:38.2]} 55. Kf1 {[%clk 0:00:14.8]}
55... Rxg4 {[%clk 0:00:37]} 56. Rb7+ {[%clk 0:00:16.2]} 56... Kf6 {[%clk
0:00:27.4]} 57. Ke2 {[%clk 0:00:17.3]} 57... Bd4 {[%clk 0:00:26.4]} 58. Rh7
{[%clk 0:00:16.5]} 58... Ke5 {[%clk 0:00:27.4]} 59. Rhxf7 {[%clk 0:00:15.8]}
59... Rg2+ {[%clk 0:00:27.7]} 60. Kd3 {[%clk 0:00:17.1]} 60... Bc3 {[%clk
0:00:28.9]} 61. Rb5 {[%clk 0:00:13.4]} 61... g4 {[%clk 0:00:29.3]} 62. Rxa5
{[%clk 0:00:13.3]} 62... Rd2+ {[%clk 0:00:24.9]} 63. Ke3 {[%clk 0:00:14.5]}
63... b3 {[%clk 0:00:24.8]} 64. Rb5 {[%clk 0:00:09.2]} 64... b2 {[%clk
0:00:25.2]} 65. Rc7 {[%clk 0:00:10]} 65... Rd1 {[%clk 0:00:24.9]} 66. Rcb7
{[%clk 0:00:07.3]} 66... Rd2 {[%clk 0:00:23.1]} 67. Rg7 {[%clk 0:00:05.1]} 67...
b1=Q {[%clk 0:00:22.6]} 68. Rg5+ {[%clk 0:00:03.9]} 68... Qf5 {[%clk 0:00:22.4]}
0-1